bitfinex/quotes_SOLUSD_20250522
["timestamp","ask_amount","ask_price","bid_price","bid_amount"]
[1747908341720,5.58752863,178.97,178.95,0.1752032]
[1747908347032,5.58659217,179.0,178.96,33.5]
[1747908347411,5.58659217,179.0,178.96,73.2]
[1747908348226,5.58628009,179.01,178.96,73.2]
[1747908351134,33.38714862,179.01,178.96,39.7]
[1747908351306,33.38714862,179.01,178.96,73.2]
[1747908351709,19.55198033,179.01,178.96,73.2]
[1747908353941,5.58628009,179.01,178.96,73.2]
[1747908356032,13.83516829,178.98,178.95,0.1752032]
[1747908356205,13.83516829,179.0,178.95,0.1752032]
[1747908356534,13.83516829,179.01,178.95,33.6752032]
[1747908357414,4.11647439,179.0,178.95,33.6752032]
[1747908358333,33.38605645,179.02,178.95,33.6752032]
[1747908358921,13.83516829,179.01,178.95,33.6752032]
[1747908359739,13.83516829,179.01,178.95,73.3552032]
[1747908360640,13.96492012,179.02,178.95,73.3552032]
[1747908360842,13.83516829,179.01,178.95,73.3552032]
[1747908361141,19.55307261,179.0,178.95,73.3552032]
[1747908362339,27.92924113,179.03,178.95,73.3552032]
[1747908362533,19.54870419,179.04,178.95,73.3552032]
[1747908362918,13.83516829,179.02,178.95,73.3552032]
[1747908363128,4.11261752,179.01,178.95,73.3552032]
[1747908363846,13.83516829,179.02,178.95,73.3552032]
[1747908364026,19.54870419,179.04,178.95,73.3552032]
[1747908364226,13.83516829,179.02,178.95,73.3552032]
[1747908364526,5.58628009,179.01,178.95,73.3552032]
[1747908364731,19.42144838,179.01,178.95,73.3552032]
[1747908364933,33.38714862,179.01,178.95,73.3552032]
[1747908365145,13.83516829,179.0,178.95,73.3552032]
[1747908365843,19.55198033,179.01,178.95,73.3552032]
[1747908367570,19.55198033,179.01,178.95,39.8552032]
[1747908367571,13.83516829,179.0,178.95,39.8552032]
[1747908367726,13.83516829,178.98,178.95,39.8552032]
[1747908367929,13.83516829,178.97,178.95,39.8552032]
[1747908368178,13.83516829,178.98,178.95,39.8552032]
[1747908368630,5.58752863,178.97,178.95,39.8552032]
[1747908375838,13.83516829,178.98,178.95,39.8552032]
[1747908376955,19.42269692,178.97,178.95,39.8552032]
[1747908377486,13.83516829,178.96,178.95,0.1752032]
[1747908377667,5.58752863,178.97,178.95,0.1752032]
[1747908378031,19.42269692,178.97,178.95,0.1752032]
[1747908378238,13.83516829,178.96,178.95,0.1752032]
[1747908378647,17.95245305,178.96,178.95,0.1752032]
[1747908379058,9.70512561,178.96,178.95,0.1752032]
[1747908379255,23.5402939,178.96,178.95,0.1752032]
[1747908384136,49.5402939,178.96,178.95,0.1752032]
[1747908384740,35.70512561,178.96,178.95,0.1752032]
[1747908384944,9.70512561,178.96,178.95,0.1752032]
[1747908389447,23.5402939,178.96,178.95,0.1752032]
[1747908392503,49.5402939,178.96,178.95,0.1752032]
[1747908392849,49.54188137,178.96,178.95,0.1752032]
[1747908393765,23.54188137,178.96,178.95,0.1752032]
[1747908394156,26.0,178.93,178.86,0.1983373]
[1747908394375,13.83516829,178.87,178.86,0.1983373]
[1747908394560,19.42582071,178.87,178.86,0.1983373]
[1747908394752,23.54469294,178.87,178.86,0.1983373]
[1747908395356,9.70952465,178.87,178.86,0.1983373]
[1747908395755,5.59065242,178.87,178.86,0.1983373]
[1747908396574,19.42582071,178.87,178.86,0.1983373]
[1747908398160,5.59065242,178.87,178.86,0.1983373]
[1747908398678,19.42582071,178.87,178.86,0.1983373]
[1747908403776,45.42582071,178.87,178.86,0.1983373]
[1747908404082,26.0,178.84,178.8,19.0]
[1747908404259,13.83516829,178.81,178.8,19.0]
[1747908404658,19.42769667,178.81,178.8,19.0]
[1747908405093,23.52581036,178.81,178.8,19.0]
[1747908405379,83.22419037,178.81,178.8,15.3858124]
[1747908405583,83.22419037,178.81,178.8,10.4858124]
[1747908405959,101.87383923,178.81,178.8,10.4858124]
[1747908406164,26.0,178.78,178.68,6.85319889]
[1747908406375,13.83516829,178.73,178.68,6.85319889]
[1747908406680,5.59534467,178.72,178.68,6.85319889]
[1747908406888,19.43051296,178.72,178.68,6.85319889]
[1747908407072,19.58370635,178.72,178.68,6.85319889]
[1747908407383,13.83516829,178.69,178.68,6.85319889]
[1747908407586,13.83516829,178.62,178.61,7.93272986]
[1747908408089,2.73366647,178.62,178.61,7.93272986]
[1747908408279,26.0,178.61,178.57,8.62405819]
[1747908408783,5.59973121,178.58,178.57,8.62405819]
[1747908409160,33.43422753,178.58,178.48,26.0]
[1747908409376,13.83516829,178.57,178.5,18.64964886]
[1747908409795,19.4348995,178.58,178.5,84.32964886]
[1747908409960,5.59973121,178.58,178.5,39.68]
[1747908410281,19.59905924,178.58,178.5,39.68]
[1747908410863,13.83516829,178.57,178.5,39.68]
[1747908411080,13.83516829,178.51,178.47,8.62405819]
[1747908411254,13.83516829,178.52,178.47,8.62405819]
[1747908412081,26.0,178.57,178.47,8.62405819]
[1747908412494,26.0,178.57,178.44,18.64964886]
[1747908412495,13.83516829,178.53,178.44,18.64964886]
[1747908412787,26.0,178.57,178.44,44.64964886]
[1747908413083,13.83516829,178.51,178.44,18.64964886]
[1747908413388,13.83516829,178.52,178.44,18.64964886]
[1747908414466,13.83516829,178.53,178.44,24.25371615]
[1747908414867,5.60161326,178.52,178.44,24.25371615]
[1747908415585,19.43678155,178.52,178.44,18.64964886]
[1747908415797,5.60161326,178.52,178.43,36.37130761]
[1747908415973,5.60161326,178.52,178.44,18.64964886]
[1747908416365,5.59973121,178.58,178.44,18.64964886]
[1747908416563,13.83516829,178.55,178.44,18.64964886]
[1747908416880,5.6012995,178.53,178.46,18.64964886]
[1747908417081,5.6012995,178.53,178.43,10.37130761]
[1747908417082,79.16454825,178.53,178.43,10.37130761]
[1747908417390,13.83516829,178.46,178.36,5.60663825]
[1747908417594,13.83516829,178.45,178.35,95.632782]
[1747908417781,13.83516829,178.41,178.35,95.632782]
[1747908417963,26.0,178.49,178.35,95.632782]
[1747908418701,26.0,178.49,178.36,18.64964886]
[1747908418904,5.60381059,178.45,178.36,18.64964886]
[1747908419109,5.60381059,178.45,178.36,24.25626577]
[1747908419310,19.43897888,178.45,178.36,18.64964886]
[1747908419800,21.94868808,178.44,178.36,18.64964886]
[1747908419981,21.94868808,178.44,178.36,52.20964886]
[1747908420181,21.94868808,178.42,178.36,33.56]
[1747908420483,19.61333706,178.45,178.35,95.632782]
[1747908420484,21.94868808,178.4,178.35,95.632782]
[1747908420805,21.94868808,178.43,178.35,101.23970896]
[1747908421009,5.60286866,178.48,178.38,18.64964886]
[1747908421181,21.94868808,178.47,178.38,18.64964886]
[1747908421379,21.94868808,178.47,178.39,33.58]
[1747908422207,5.60349658,178.46,178.39,39.18563455]
[1747908422545,5.6032412,178.47,178.39,39.18563455]
[1747908422690,21.94868808,178.46,178.39,39.18563455]
[1747908422874,45.60784313,178.5,178.39,39.18563455]
[1747908423075,21.94868808,178.47,178.39,39.18563455]
[1747908423292,21.94868808,178.46,178.39,33.58]
[1747908423490,21.94868808,178.47,178.39,39.18546402]
[1747908423695,21.94868808,178.49,178.4,60.78964886]
[1747908424000,5.60224089,178.5,178.4,60.78964886]
[1747908424173,14.00348772,178.53,178.42,18.64964886]
[1747908424174,21.94868808,178.49,178.42,18.64964886]
[1747908424375,21.94868808,178.49,178.41,5.60506698]
[1747908424588,21.94868808,178.48,178.41,5.60506698]
[1747908424988,19.60564642,178.52,178.41,5.60506698]
[1747908425189,21.94868808,178.49,178.41,5.60506698]
[1747908425411,27.55135303,178.49,178.41,5.60506698]
[1747908425911,27.5509719,178.5,178.42,18.64964886]
[1747908426093,5.60228382,178.5,178.42,18.64964886]
[1747908426481,31.19986983,178.59,178.42,18.64964886]
[1747908426681,21.94868808,178.56,178.46,18.64964886]
[1747908426882,5.59973121,178.58,178.48,18.64964886]
[1747908427281,5.59973121,178.58,178.48,44.64964886]
[1747908427609,5.59973121,178.58,178.5,18.64964886]
[1747908428210,36.79939391,178.59,178.5,18.64964886]
[1747908428781,31.19986983,178.59,178.51,26.0]
[1747908428983,36.79930875,178.59,178.52,26.0]
[1747908429604,36.79930875,178.59,178.51,24.25149182]
[1747908430291,21.94868808,178.56,178.48,18.64964886]
[1747908430490,36.57357165,178.59,178.5,33.58]
[1747908430802,21.94868808,178.56,178.5,33.58]
[1747908431197,72.52080388,178.59,178.5,33.58]
[1747908431506,36.57357165,178.59,178.51,18.64964886]
[1747908431689,36.57357165,178.59,178.52,5.60161326]
[1747908431887,30.97413273,178.59,178.52,5.60161326]
[1747908432412,36.5737903,178.59,178.51,18.64964886]
[1747908432793,30.97413273,178.59,178.51,18.64964886]
[1747908433191,5.59875093,178.62,178.51,18.64964886]
[1747908433387,5.59843706,178.63,178.51,18.64964886]
[1747908433711,5.59843706,178.63,178.53,18.64964886]
[1747908434007,5.59843706,178.63,178.55,18.64964886]
[1747908434207,5.59780993,178.65,178.57,18.64964886]
[1747908434886,5.59628406,178.69,178.57,18.64964886]
[1747908435196,31.59628406,178.69,178.57,18.64964886]
[1747908435585,5.59628406,178.69,178.57,18.64964886]
[1747908435780,5.59628406,178.69,178.59,18.64964886]
[1747908436009,31.59628406,178.69,178.59,18.64964886]
[1747908436795,31.59628406,178.69,178.61,18.64964886]
[1747908437102,5.59628406,178.69,178.62,75.72]
[1747908437412,21.94868808,178.65,178.55,42.14]
[1747908437708,21.94868808,178.61,178.55,42.14]
[1747908437919,26.0,178.64,178.55,42.14]
[1747908437920,21.94868808,178.58,178.55,42.14]
[1747908438621,21.94868808,178.59,178.55,42.14]
[1747908438811,19.59505859,178.62,178.55,42.14]
[1747908439417,41.54374667,178.62,178.55,42.14]
[1747908440010,19.59505859,178.62,178.55,42.14]
[1747908440216,41.54374667,178.62,178.55,42.14]
[1747908440796,41.54374667,178.62,178.56,18.64964886]
[1747908440797,5.59847721,178.62,178.56,18.64964886]
[1747908441515,5.59847721,178.62,178.56,24.24996762]
[1747908443101,5.59753708,178.65,178.56,24.24996762]
[1747908443319,47.94868808,178.68,178.56,38.25086367]
[1747908443320,5.5969105,178.67,178.56,38.25086367]
[1747908444022,5.59565776,178.71,178.6,18.64964886]
[1747908444196,27.96110401,178.82,178.62,44.64964886]
[1747908444400,4.0467514,178.77,178.66,18.64964886]
[1747908444709,5.59409263,178.76,178.68,24.24599741]
[1747908445427,5.59409263,178.76,178.68,18.64964886]
[1747908448024,5.59409263,178.76,178.68,24.24613807]
[1747908448398,5.59346683,178.78,178.68,38.23763124]
[1747908448598,5.59346683,178.78,178.68,24.24613807]
[1747908449106,5.59315397,178.79,178.68,24.24613807]
[1747908451026,27.54184205,178.79,178.68,24.24613807]
[1747908451604,21.94868808,178.78,178.68,24.24613807]
[1747908451920,41.52472699,178.79,178.7,18.64964886]
[1747908452121,19.57603891,178.79,178.71,42.38]
[1747908452425,41.52472699,178.79,178.71,42.38]
[1747908453519,19.57603891,178.79,178.71,42.38]
[1747908453913,21.94868808,178.78,178.71,42.38]
[1747908454230,21.94868808,178.74,178.69,33.56]
[1747908454804,21.94868808,178.75,178.69,33.56]
[1747908455104,5.59471858,178.74,178.69,33.56]
[1747908457203,5.59377971,178.77,178.69,33.56]
[1747908457398,27.54246779,178.77,178.69,33.56]
[1747908458427,21.94868808,178.75,178.69,33.56]
[1747908459327,21.94868808,178.75,178.68,42.38]
[1747908459328,21.94868808,178.7,178.68,42.38]
[1747908459533,21.94868808,178.69,178.62,75.92]
[1747908459732,21.94868808,178.67,178.62,75.92]
[1747908460627,26.0,178.71,178.62,75.92]
[1747908460828,26.0,178.71,178.62,52.18964886]
[1747908461006,47.94868808,178.71,178.62,52.18964886]
[1747908461333,5.5959709,178.7,178.62,52.18964886]
[1747908461522,27.54465898,178.7,178.62,52.18964886]
[1747908461725,5.5959709,178.7,178.62,57.7881182]
[1747908463833,5.59565776,178.71,178.62,57.7881182]
[1747908464629,27.54434584,178.71,178.62,57.7881182]
[1747908465333,41.53349026,178.71,178.62,52.18964886]
[1747908466956,41.53349026,178.71,178.62,57.78810419]
[1747908467429,21.94868808,178.64,178.56,42.38]
[1747908467739,26.0,178.68,178.52,33.56]
[1747908467740,21.94868808,178.58,178.52,33.56]
[1747908467919,26.0,178.66,178.52,33.56]
[1747908468117,21.94868808,178.61,178.53,18.64964886]
[1747908468935,21.94868808,178.63,178.53,18.64964886]
[1747908469416,5.59847721,178.62,178.53,24.25071015]
[1747908471438,27.5465385,178.64,178.53,24.25071015]
[1747908471648,5.59785042,178.64,178.53,38.2539589]
[1747908473043,5.59753708,178.65,178.53,38.2539589]
[1747908473212,5.59753708,178.65,178.53,121.2539589]
[1747908474340,19.58918676,178.67,178.53,121.2539589]
[1747908474526,21.94868808,178.66,178.53,121.2539589]
[1747908475934,5.59628406,178.69,178.58,26.0]
[1747908476116,5.59628406,178.69,178.59,94.60964886]
[1747908476322,5.5959709,178.7,178.6,5.59910414]
[1747908477414,5.59565776,178.71,178.6,5.59910414]
[1747908477613,27.54434584,178.71,178.6,5.59910414]
[1747908479366,5.59565776,178.71,178.6,5.59910414]
[1747908479680,27.54434584,178.71,178.6,5.59910414]
[1747908480048,136.9,178.78,178.67,26.0]
[1747908480251,21.94868808,178.84,178.69,18.64964886]
[1747908480565,21.94868808,178.84,178.69,27.60199484]
[1747908480881,21.94868808,178.81,178.69,18.64964886]
[1747908481569,21.94868808,178.79,178.69,18.64964886]
[1747908481891,5.59065242,178.87,178.71,18.64964886]
[1747908481892,26.0,178.84,178.71,18.64964886]
[1747908482183,21.94868808,178.85,178.71,18.64964886]
[1747908482358,21.94868808,178.86,178.72,9.39290153]
[1747908482609,26.0,178.84,178.73,18.64964886]
[1747908482758,26.0,178.84,178.74,33.56]
[1747908482957,47.94868808,178.84,178.76,18.64964886]
[1747908483264,21.94868808,178.82,178.75,41.46]
[1747908483948,5.5924165,178.82,178.75,41.46]
[1747908484147,21.94868808,178.83,178.75,47.05427957]
[1747908484351,27.54063841,178.83,178.75,47.05427957]
[1747908484570,53.54033404,178.84,178.75,47.05427957]
[1747908484773,31.59164596,178.84,178.75,47.05427957]
[1747908485086,5.59164596,178.84,178.75,47.05427957]
[1747908485257,31.59164596,178.84,178.75,47.05427957]
[1747908485458,26.0,178.84,178.76,18.64964886]
[1747908485860,26.0,178.84,178.77,5.59377971]
[1747908486063,41.90880643,178.96,178.78,18.64964886]
[1747908486354,26.0,178.93,178.78,18.64964886]
[1747908486665,21.94868808,178.89,178.78,18.64964886]
[1747908487060,21.94868808,178.9,178.78,18.64964886]
[1747908487564,5.59033989,178.88,178.79,5.59315397]
[1747908487764,5.59033989,178.88,178.8,33.54]
[1747908488481,5.59002739,178.89,178.8,39.13274027]
[1747908489777,5.59002739,178.89,178.81,18.64964886]
[1747908490102,31.58979655,178.9,178.82,41.44]
[1747908490261,5.58979655,178.9,178.82,41.44]
[1747908490579,5.58946676,178.91,178.83,18.64964886]
[1747908491767,5.58909009,178.92,178.84,5.59159024]
[1747908492167,5.58909009,178.92,178.83,18.64964886]
[1747908492370,21.94868808,178.91,178.83,18.64964886]
[1747908492956,21.94868808,178.91,178.83,24.24149896]
[1747908493156,21.94868808,178.91,178.83,18.64964886]
[1747908493767,5.58909009,178.92,178.83,24.24149265]
[1747908494775,5.58877773,178.93,178.83,24.24149265]
[1747908495863,5.5884654,178.94,178.83,24.24149265]
[1747908496058,27.53715348,178.94,178.83,24.24149265]
[1747908496375,5.5884654,178.94,178.83,24.24149265]
[1747908496771,21.94868808,178.93,178.83,24.24149265]
[1747908497085,5.58909009,178.92,178.83,24.24149265]
[1747908497492,21.94868808,178.84,178.76,74.94]
[1747908497689,21.94868808,178.84,178.76,80.5340794]
[1747908497899,21.94868808,178.84,178.76,74.94]
[1747908498391,21.94868808,178.85,178.77,18.64964886]
[1747908498576,21.94868808,178.86,178.77,18.64964886]
[1747908498770,21.94868808,178.85,178.77,18.64964886]
[1747908498976,21.94868808,178.86,178.77,24.24336485]
[1747908499176,21.94868808,178.86,178.77,18.64964886]
[1747908500287,21.94868808,178.85,178.77,18.64964886]
[1747908500690,21.94868808,178.86,178.77,24.24327508]
[1747908501190,5.5912776,178.85,178.77,24.24327508]
[1747908503571,21.94868808,178.87,178.77,24.24327508]
[1747908504587,27.53965308,178.86,178.77,24.24327508]
[1747908505572,21.94868808,178.85,178.77,18.64964886]
[1747908506074,41.51706558,178.86,178.77,24.24333953]
[1747908506778,41.51706558,178.86,178.77,18.64964886]
[1747908506969,47.94868808,178.84,178.78,33.52]
[1747908507173,26.0,178.84,178.78,33.52]
[1747908507893,26.0,178.84,178.79,18.64964886]
[1747908509198,31.59162909,178.84,178.79,18.64964886]
[1747908510103,26.0,178.84,178.79,24.24274935]
[1747908510280,5.58877773,178.93,178.79,24.24274935]
[1747908510594,21.94868808,178.88,178.79,24.24274935]
[1747908510797,26.0,178.85,178.79,24.24274935]
[1747908511303,31.59133559,178.85,178.79,24.24274935]
[1747908511480,31.59133559,178.85,178.79,18.64964886]
[1747908511682,31.59133559,178.85,178.8,33.52]
[1747908512089,53.54002367,178.85,178.8,33.52]
[1747908512896,27.54002367,178.85,178.8,74.84]
[1747908513697,5.59133559,178.85,178.8,74.84]
[1747908514279,5.59133559,178.85,178.81,18.64964886]
[1747908515398,5.59002739,178.89,178.81,18.64964886]
[1747908515778,21.94868808,178.88,178.81,18.64964886]
[1747908516098,27.53871547,178.89,178.81,24.24212428]
[1747908516396,5.59002739,178.89,178.81,24.24212428]
[1747908516605,27.53871547,178.89,178.81,24.24212428]
[1747908517405,21.94868808,178.88,178.81,18.64964886]
[1747908517787,27.53871547,178.89,178.81,18.64964886]
[1747908518683,27.53871547,178.89,178.81,24.24204776]
[1747908519501,5.59002739,178.89,178.81,24.24204776]
[1747908519815,27.53871547,178.89,178.81,24.24204776]
[1747908520017,19.56072206,178.93,178.81,24.24204776]
[1747908520218,21.94868808,178.89,178.81,24.24204776]
[1747908520878,21.94868808,178.89,178.81,18.64964886]
[1747908521509,47.50461073,178.93,178.81,18.64964886]
[1747908521803,13.86044774,178.88,178.81,18.64964886]
[1747908521978,13.86044774,178.89,178.81,18.64964886]
[1747908522182,5.59033989,178.88,178.81,18.64964886]
[1747908524107,4.10822143,178.87,178.81,18.64964886]
[1747908524312,5.590965,178.86,178.81,24.24216691]
[1747908525410,5.59033989,178.88,178.81,24.24216691]
[1747908526301,5.59033989,178.88,178.81,18.64964886]
[1747908526707,13.86044774,178.87,178.82,33.52]
[1747908527297,5.5912776,178.85,178.77,209.16]
[1747908527514,5.5912776,178.85,178.72,41.32]
[1747908527515,13.86044774,178.78,178.72,41.32]
[1747908527810,13.86044774,178.76,178.73,33.52]
[1747908527988,13.86044774,178.76,178.63,209.16]
[1747908528192,4.11738228,178.76,178.66,41.32]
[1747908528408,31.83827776,178.76,178.75,6.36926691]
[1747908529187,31.83827776,178.76,178.66,41.32]
[1747908529396,5.5959709,178.7,178.66,74.84]
[1747908530390,27.47996215,178.7,178.66,74.84]
[1747908530595,5.5959709,178.7,178.66,74.84]
[1747908530811,21.88399125,178.71,178.66,74.84]
[1747908531016,21.88399125,178.73,178.66,74.84]
[1747908531214,21.88399125,178.74,178.68,26.0]
[1747908531513,27.47839684,178.75,178.68,26.0]
[1747908531906,21.88399125,178.74,178.68,26.0]
[1747908533421,27.4789484,178.74,178.68,26.0]
[1747908533819,21.88399125,178.73,178.68,26.0]
[1747908534121,27.4789484,178.74,178.69,33.54]
[1747908534822,21.88399125,178.72,178.66,41.32]
[1747908535004,21.88399125,178.69,178.67,33.54]
[1747908535197,21.88399125,178.68,178.66,41.32]
[1747908535399,21.88399125,178.68,178.66,74.86]
[1747908535613,5.5969105,178.67,178.66,74.86]
[1747908536431,27.48090175,178.67,178.63,209.16]
[1747908536900,21.88399125,178.66,178.63,209.16]
[1747908537099,21.88399125,178.66,178.63,242.7]
[1747908537838,5.59753708,178.65,178.63,242.7]
[1747908539640,21.88399125,178.72,178.64,18.64964886]
[1747908539844,5.59565776,178.71,178.64,24.24746862]
[1747908540837,21.88399125,178.74,178.64,24.24746862]
[1747908541039,5.59471858,178.74,178.68,18.64964886]
[1747908541228,27.47870983,178.74,178.69,73.98]
[1747908541431,21.88399125,178.73,178.69,73.98]
[1747908542045,5.59534467,178.72,178.69,73.98]
[1747908544747,21.88399125,178.71,178.68,33.54]
[1747908545046,5.59471858,178.74,178.68,33.54]
[1747908545218,27.47777096,178.77,178.69,18.64964886]
[1747908545418,5.59377971,178.77,178.69,44.64964886]
[1747908545618,5.59377971,178.77,178.73,18.64964886]
[1747908545839,27.47777096,178.77,178.74,73.98]
[1747908546144,27.47777096,178.77,178.66,83.0]
[1747908546145,21.88399125,178.75,178.66,26.0]
[1747908546324,21.88399125,178.72,178.67,73.98]
[1747908546525,5.59565776,178.71,178.67,73.98]
[1747908548149,21.88399125,178.75,178.68,18.64964886]
[1747908548751,5.59471858,178.74,178.68,18.64964886]
[1747908549421,5.59471858,178.74,178.68,44.64964886]
[1747908549753,5.59409263,178.76,178.68,50.24622076]
[1747908550133,27.47808388,178.76,178.68,44.64964886]
[1747908550338,21.88399125,178.75,178.68,44.64964886]
[1747908550526,27.47808388,178.76,178.68,44.64964886]
[1747908550731,5.59385844,178.77,178.72,18.64964886]
[1747908550932,5.59385844,178.77,178.73,33.54]
[1747908551150,5.59385844,178.77,178.74,40.44]
[1747908551354,27.47784969,178.77,178.74,40.44]
[1747908552154,21.88399125,178.83,178.75,18.64964886]
[1747908552352,21.88399125,178.82,178.75,18.64964886]
[1747908552728,5.59252838,178.81,178.75,18.64964886]
[1747908553644,27.47589417,178.83,178.75,18.64964886]
[1747908554057,5.59190292,178.83,178.75,24.24378204]
[1747908554447,27.47589417,178.83,178.75,24.24378204]
[1747908555174,5.59252838,178.81,178.75,24.24378204]
[1747908556464,5.59252838,178.81,178.75,18.64964886]
[1747908556640,21.88399125,178.8,178.75,18.64964886]
[1747908557135,5.59315397,178.79,178.75,18.64964886]
[1747908557534,5.59315397,178.79,178.68,13.9909652]
[1747908557535,21.88399125,178.76,178.66,40.44]
[1747908557763,13.88821168,178.68,178.66,40.44]
[1747908557962,13.88821168,178.75,178.56,2.79600598]
[1747908557963,13.88821168,178.67,178.56,2.79600598]
[1747908558169,13.88821168,178.63,178.58,33.54]
[1747908558339,13.88821168,178.63,178.58,59.54]
[1747908558754,13.88821168,178.63,178.58,52.18964886]
[1747908558966,13.88821168,178.64,178.58,52.18964886]
[1747908559169,5.5981638,178.63,178.58,52.18964886]
[1747908559470,5.5981638,178.63,178.58,78.18964886]
[1747908559768,5.5981638,178.63,178.59,18.64964886]
[1747908560651,21.89967583,178.63,178.59,18.64964886]
[1747908561878,5.59847721,178.62,178.59,18.64964886]
[1747908563965,41.49118617,178.65,178.59,18.64964886]
[1747908564873,21.89967583,178.64,178.6,33.56]
[1747908565049,21.89967583,178.64,178.58,18.64964886]
[1747908565251,21.89967583,178.64,178.59,33.56]
[1747908565483,19.59151034,178.65,178.59,33.56]
[1747908565776,41.49118617,178.65,178.59,33.56]
[1747908566077,5.5981638,178.63,178.59,33.56]
[1747908567972,5.59785042,178.64,178.59,33.56]
[1747908569562,21.89967583,178.63,178.59,33.56]
[1747908570071,19.59467024,178.62,178.6,33.56]
[1747908570463,5.59847721,178.62,178.6,33.56]
[1747908571980,5.5981638,178.63,178.6,33.56]
[1747908572155,27.49783963,178.63,178.6,33.56]
[1747908574579,41.49324913,178.63,178.57,59.08964886]
[1747908574770,41.49324913,178.63,178.58,33.56]
[1747908574963,41.49324913,178.63,178.57,59.08964886]
[1747908575167,41.49324913,178.63,178.58,33.56]
[1747908576071,19.5935733,178.63,178.58,33.56]
[1747908576976,5.59753708,178.65,178.59,18.64964886]
[1747908578184,19.59137978,178.65,178.59,18.64964886]
[1747908578485,41.49105561,178.65,178.59,18.64964886]
[1747908579684,33.48834258,178.65,178.59,18.64964886]
[1747908579880,13.8969628,178.64,178.58,33.56]
[1747908580177,5.59910414,178.6,178.56,40.22]
[1747908580390,5.59910414,178.6,178.58,33.56]
[1747908580886,19.49606694,178.6,178.58,33.56]
[1747908583685,5.59910414,178.6,178.58,33.56]
[1747908584880,5.59847721,178.62,178.58,33.56]
[1747908585663,19.49544001,178.62,178.58,33.56]
[1747908586065,19.49544001,178.62,178.59,33.56]
[1747908587360,13.8969628,178.6,178.49,40.22]
[1747908587578,13.8969628,178.53,178.49,40.22]
[1747908587766,13.8969628,178.52,178.49,40.22]
[1747908587969,162.9,178.61,178.49,40.22]
[1747908587970,13.8969628,178.54,178.49,40.22]
[1747908589492,5.6012995,178.53,178.49,40.22]
[1747908590271,5.60067208,178.55,178.49,40.22]
[1747908590479,19.49763488,178.55,178.49,40.22]
[1747908591989,5.60067208,178.55,178.49,40.22]
[1747908592192,19.49763488,178.55,178.49,40.22]
[1747908593685,19.49763488,178.55,178.5,40.24]
[1747908595066,19.49763488,178.55,178.51,33.58]
[1747908595963,19.49763488,178.55,178.5,40.24]
[1747908596176,13.8969628,178.54,178.51,33.58]
[1747908596790,5.60067208,178.55,178.51,33.58]
[1747908597295,19.49763488,178.55,178.51,33.58]
[1747908598578,5.60067208,178.55,178.51,33.58]
[1747908600796,13.8969628,178.58,178.51,33.58]
[1747908600992,13.8969628,178.61,178.52,18.64964886]
[1747908601172,5.59753708,178.65,178.57,26.0]
[1747908601492,5.59753708,178.65,178.58,73.82]
[1747908602290,5.59659726,178.68,178.61,26.0]
[1747908603099,5.59659726,178.68,178.62,5.59847721]
[1747908603278,5.59659726,178.68,178.63,33.58]
[1747908603894,67.87013016,178.75,178.63,33.58]
[1747908603895,13.8969628,178.76,178.66,26.0]
[1747908604101,13.8969628,178.74,178.67,40.1]
[1747908604278,13.8969628,178.73,178.68,33.58]
[1747908604888,5.59534467,178.72,178.68,33.58]
[1747908605178,13.8969628,178.75,178.68,33.58]
[1747908605577,13.8969628,178.75,178.68,39.17649571]
[1747908605788,27.46545423,178.76,178.68,39.17649571]
[1747908607899,21.8713616,178.76,178.68,39.17649571]
[1747908608075,21.8713616,178.76,178.68,5.59649571]
[1747908608277,21.8713616,178.71,178.64,59.56]
[1747908608789,21.8713616,178.73,178.64,59.56]
[1747908609478,21.8713616,178.73,178.65,17.46425414]
[1747908610090,5.59534467,178.72,178.65,17.46425414]
[1747908610690,21.8713616,178.71,178.65,17.46425414]
[1747908610994,19.58370635,178.72,178.66,33.56]
[1747908610995,21.8713616,178.69,178.66,33.56]
[1747908611213,21.8713616,178.7,178.66,33.56]
[1747908611904,21.8713616,178.71,178.66,33.56]
[1747908612110,5.5959709,178.7,178.67,40.08]
[1747908613089,5.5959709,178.7,178.68,73.64]
[1747908613491,5.59534467,178.72,178.68,73.64]
[1747908613889,19.58370635,178.72,178.68,73.64]
[1747908617519,21.8713616,178.71,178.68,40.08]
[1747908618006,41.45506795,178.72,178.68,40.08]
[1747908618387,19.58370635,178.72,178.68,40.08]
[1747908619520,13.98836168,178.72,178.68,40.08]
[1747908620603,19.58370635,178.72,178.68,40.08]
[1747908622911,13.98836168,178.72,178.68,40.08]